Cogmind - Beta 17.1 @@@ ROGUE MODE // 2026.09.11 @ 16:16:12 Player: Ethranok Result: Self-destructed Performance ------------- Evolutions (3) 1500 Regions Visited (5) 1000 Robots Destroyed (82) 410 Value Destroyed (2551) 2551 Prototype IDs (1) 20 Alien Tech Used (0) 0 Bonus (60) 60 TOTAL SCORE: 5541 Bonus ------- Follower Combat Kills 60 Cogmind --------- Core Integrity 421/700 Matter 131/300 Energy 265/265 System Corruption 0% Temperature Cool (24) Movement Core (600) Ox11 Location -7/Factory Parts ------- > --- POWER (1) -------- Reinforced Ion Engine > --- PROPULSION (2) --- (None) > --- UTILITY (7) ------ Large Storage Unit Hacking Suite > --- WEAPON (3) ------- Minigun Minigun > --- INVENTORY (15) --- Light Treads Thermal Generator High-capacity Matter Pod (0) Matter Filter Transmission Jammer Propulsion Shielding Improved Utility Shielding Improved Utility Shielding System Shield Remote Datajack Peak State ------------ > --- POWER ------------ Reinforced Ion Engine > --- PROPULSION ------- Improved Treads Advanced Treads > --- UTILITY ---------- Large Storage Unit Trap Scanner Targeting Computer Improved Utility Shielding Heavy Armor Plating Hacking Suite > --- WEAPON ----------- Minigun Assault Cannon Flak Cannon > --- INVENTORY -------- Light Treads Thermal Generator High-capacity Matter Pod Targeting Computer Core Shielding Propulsion Shielding Improved Utility Shielding Hardened Medium Armor Plating Hardened Medium Armor Plating System Shield Minigun Grenade Launcher Rocket Launcher [Rating: 35] Favorites ----------- Power Heavy Ion Engine Engine Heavy Ion Engine Power Core Light Nuclear Core Propulsion Light Treads Treads Light Treads Leg Aluminum Leg Utility Targeting Computer Device Trap Scanner Storage Large Storage Unit Processor Targeting Computer Hackware Hacking Suite Protection Core Shielding Weapon Minigun Energy Gun Particle Gun Ballistic Gun Minigun Ballistic Cannon Flak Cannon Launcher Rocket Launcher Special Weapon Mining Laser Build | -11 -10 -10 -9 -8 -7 ------- Run | Yrd Mat Min Mat Mat Fac Slots Evolved 6 | . . . 2 2 2 Power . | . . . . . . Propulsion . | . . . . . . Utility 5 | . . . 2 1 2 Weapon 1 | . . . . 1 . Parts Attached 49 | 6 9 . 15 15 4 Power 7 | 1 1 . 3 2 . Engine 5 | 1 . . 2 2 . Core 2 | . 1 . 1 . . Reactor . | . . . . . . Propulsion 9 | 2 2 . 2 3 . Treads 7 | . 2 . 2 3 . Leg 2 | 2 . . . . . Wheel . | . . . . . . Hover . | . . . . . . Flight . | . . . . . . Utility 18 | 1 2 . 6 5 4 Device 1 | . . . . 1 . Storage 3 | 1 1 . 1 . . Processor 2 | . . . 2 . . Hackware 1 | . . . . 1 . Protection 11 | . 1 . 3 3 4 Artifact . | . . . . . . Weapon 15 | 2 4 . 4 5 . Energy Gun 1 | . 1 . . . . Energy Cannon . | . . . . . . Ballistic Gun 9 | 2 3 . 4 . . Ballistic Cannon 2 | . . . . 2 . Launcher 2 | . . . . 2 . Special Weapon 1 | . . . . 1 . Impact Weapon . | . . . . . . Slashing Weapon . | . . . . . . Piercing Weapon . | . . . . . . Special Melee Weapon . | . . . . . . Unidentified Prototypes 1 | . . . 1 . . Parts Lost 17 | . 1 1 2 1 12 Power . | . . . . . . Propulsion 5 | . . 1 1 1 2 Utility 7 | . . . 1 . 6 Weapon 5 | . 1 . . . 4 Highest Loss Streak 12 | . 1 1 2 1 12 To Critical Strikes 1 | . . 1 . . . Average Backups 11 | 1 6 10 10 13 13 Power . | . 1 1 1 . . Propulsion . | . . . . . 1 Utility 7 | . 2 7 6 9 9 Weapon 2 | . 1 2 3 2 2 Tool/Special . | . . . . . . Unused Backups 24 | . 4 . 5 7 8 Power 2 | . . . 1 1 . Propulsion 1 | . . . . . 1 Utility 19 | . 4 . 3 6 6 Weapon 1 | . . . 1 . . Tool/Special 1 | . . . . . 1 Average Slot Usage (%) 93 | . 89 92 94 96 90 Engine 7 | . 8 . 7 9 6 Core 2 | . 5 14 3 . . Treads 16 | . 12 21 17 17 14 Leg 2 | . 14 . . . . Device 1 | . . . . 2 5 Storage 10 | . 14 14 11 9 7 Processor 9 | . . . 19 11 6 Hackware 3 | . . . . 6 7 Protection 13 | . 5 14 13 15 16 Ballistic Gun 16 | . 22 28 22 14 6 Ballistic Cannon 5 | . . . . 6 14 Peak Build Rating 35 | 6 10 10 18 29 35 Average Rating 20 | 4 7 9 15 25 33 On Entrance 11 | . 6 10 9 18 28 Avg Prop Armor Cover (%) . | . . . . . . Naked Turns . | . . . . . . Heaviest Build 63 | 13 22 22 41 53 63 Greatest Support 45 | 20 40 40 40 45 45 Greatest Overweight (x) 6 | 4 1 1 6 1 1 Average Overweight (x) . | . . . . . 1 Largest Inventory Capacity 15 | 8 10 10 15 15 15 Average Capacity 12 | 7 8 10 12 15 15 Most Carried 15 | 4 10 10 15 15 15 Average Carried 11 | 1 6 10 10 14 13 Final Capacity 15 | 8 10 10 15 15 15 Final Carried 15 | 1 10 10 14 15 10 Class Distribution -------------------- 46% | Mutant 36% | Tank 11% | Scavenger-Mutant 5% | Gunner Dominant Class ---------------- Mutant | -10/Materials Mutant | -10/Mines Mutant | -9/Materials Tank | -8/Materials Tank | -7/Factory Resources | -11 -10 -10 -9 -8 -7 ----------- Run | Yrd Mat Min Mat Mat Fac Matter Collected 2775 | 235 413 168 759 875 325 Remotely . | . . . . . . Salvage Created 2929 | . 499 137 918 1018 357 Parts 146 | . 27 11 42 42 24 Haulers Intercepted 5 | . 2 . 3 . . Recyclers Shooed . | . . . . . . Parts Field Recycled . | . . . . . . Retrieved Matter . | . . . . . . Parts Self-Destructed . | . . . . . . Prevented . | . . . . . . Parts Restored . | . . . . . . Kills | -11 -10 -10 -9 -8 -7 ------- Run | Yrd Mat Min Mat Mat Fac Combat Hostiles Destroyed 57 | . 10 5 15 21 6 Guns 42 | . 10 5 15 11 1 Cannons 9 | . . . . 7 2 AOE 6 | . . . . 3 3 Classes Destroyed 14 | . 5 . 3 3 3 Worker 2 | . . . 1 . 1 Builder 3 | . 1 . . . 2 Hauler 5 | . 2 . 3 . . Recycler 2 | . . . 2 . . Mechanic 1 | . . . . . 1 Operator 1 | . . . . . 1 Watcher 11 | . 1 . 3 5 2 Swarmer 8 | . 2 3 3 . . Grunt 35 | . 8 2 10 13 2 Brawler 2 | . . . . 2 . Duelist 1 | . . . . 1 . Sentry 6 | . . . 2 4 . Hunter 4 | . . . . 1 3 Programmer 1 | . . . . . 1 Best Kill Streak 8 | . 5 4 8 4 7 Combat Bots Only 4 | . 4 4 4 4 4 Max Kills in Single Turn 3 | . 1 2 2 2 3 Gunslinging 1 | . . 1 1 1 . Exploded 2 | . . . . 1 2 Melee . | . . . . . . Uniques/NPCs Destroyed . | . . . . . . Combat | -11 -10 -10 -9 -8 -7 -------- Run | Yrd Mat Min Mat Mat Fac Hostile Shots Fired 489 | . 63 35 100 98 193 Missed 166 | . 19 14 29 30 74 Hits 323 | . 44 21 71 68 119 Melee 3 | . . . . 3 . Projectile 320 | . 44 21 71 65 119 AOE 1 | . . . . . 1 Critical Strikes 8 | . . 1 1 3 3 Damage Taken 4798 | . 520 236 855 1100 2087 Core 656 | . 71 61 123 122 279 Absorbed by Shields . | . . . . . . Redirected to Shielding 54 | . . . 11 12 31 Regen/Repaired (Parts) 519 | . . . 108 179 232 Core Remaining (%) 73 | 100 . 47 69 77 . Volleys Fired 199 | . 48 9 46 70 26 Largest 3 | . 2 2 2 3 3 Hottest 107 | . 85 40 50 99 107 Shots Fired 409 | . 93 19 92 144 61 Gun 321 | . 93 19 92 96 21 Cannon 66 | . . . . 33 33 Launcher 22 | . . . . 15 7 Special . | . . . . . . Kinetic 375 | . 81 19 92 129 54 Thermal 12 | . 12 . . . . Explosive 22 | . . . . 15 7 Electromagnetic . | . . . . . . Robot Hit Streak 13 | . 13 4 11 12 5 Robot Miss Streak 8 | . 3 2 4 8 5 Penetration Max . | . . . . . . Secondary Targets 12 | . 3 1 6 2 . Max Gunslinging Chain 1 | . 1 1 1 1 . Shots Hit Robots 281 | . 61 12 64 104 40 Core Hits 180 | . 25 8 30 72 45 Critical Kills . | . . . . . . Critical Parts Destroyed 1 | . 1 . . . . Critical Strikes 1 | . 1 . . . . Destroy 1 | . 1 . . . . Melee Attacks . | . . . . . . Impact . | . . . . . . Slashing . | . . . . . . Piercing . | . . . . . . Sneak Attacks . | . . . . . . Combat Hostiles . | . . . . . . Follow-up Attacks . | . . . . . . Damage Inflicted 5743 | . 795 140 1147 2029 1632 Guns 3511 | . 795 140 1136 1163 277 Cannons 904 | . . . . 458 446 Explosions 1312 | . . . . 403 909 Melee . | . . . . . . Ramming 16 | . . . 11 5 . Kinetic 4272 | . 652 140 1136 1621 723 Thermal 143 | . 143 . . . . Explosive 1312 | . . . . 403 909 Electromagnetic . | . . . . . . Impact . | . . . . . . Slashing . | . . . . . . Piercing . | . . . . . . Highest Corruption 1 | . 1 1 . . . Average Corruption 1 | . 1 1 . . . Corruption Purged . | . . . . . . Corruption Blocked . | . . . . . . Effects 4 | . . 4 . . . Heat Flow Errors 1 | . . 1 . . . Data Loss (minor) 2 | . . 2 . . . Misfires 1 | . . 1 . . . Overload Shots . | . . . . . . Overflow Damage 5 | . . . . . 5 Projectiles 5 | . . . . . 5 Explosions . | . . . . . . Melee . | . . . . . . Knockbacks 19 | . . . . 12 7 Impact . | . . . . . . Kinetic 19 | . . . . 12 7 Secondary . | . . . . . . Self-Inflicted Damage 39 | . . . . 26 13 Shots 3 | . . . . 2 1 Rammed 5 | . . . 2 3 . Targets Rammed 5 | . . . 2 3 . Kicked . | . . . . . . Crushed . | . . . . . . Highest Temperature 267 | . 160 207 143 267 145 Average Temperature 56 | . 29 66 44 70 66 Received Heat Transfer 1230 | . 228 63 351 477 111 Siege Activations . | . . . . . . Martial Activations . | . . . . . . Shielding Activations . | . . . . . . Robots Disrupted . | . . . . . . Combat Hostiles . | . . . . . . Robots Corrupted . | . . . . . . Combat Hostiles . | . . . . . . Parts Fried . | . . . . . . Impact Corruptions . | . . . . . . Robots Melted . | . . . . . . Combat Hostiles . | . . . . . . Parts Melted 1 | . 1 . . . . Heat Transferred 333 | . 333 . . . . Parts Sabotaged . | . . . . . . Parts Stolen . | . . . . . . Parts Stripped . | . . . . . . Power Chain Reactions . | . . . . . . Alert | -11 -10 -10 -9 -8 -7 ------- Run | Yrd Mat Min Mat Mat Fac Maximum Alert Level 1 | . . . . 1 . Low Security (%) 90 | 100 100 100 100 70 100 Level 1 9 | . . . . 29 . Level 2 . | . . . . . . Level 3 . | . . . . . . Level 4 . | . . . . . . Level 5 . | . . . . . . High Security . | . . . . . . Max Security . | . . . . . . Peak Influence 262 | . 130 82 176 262 103 Initial 98 | . . 3 25 19 98 Average 69 | . 32 16 89 131 16 Influence Increases 1934 | . 340 188 419 750 237 Destroy 0b10 Robot/C 1180 | . 200 140 300 420 120 Destroy 0b10 Robot/NC 125 | . 20 . 45 25 35 Destroy Leader 292 | . 46 30 62 120 34 Allied During Kill 3 | . . 3 . . . Successful Hack 80 | . 28 . 11 16 25 Disable Machine 60 | . . . . 60 . Destroy Structure 104 | . 1 . 1 79 23 Lose Combat Pursuer 90 | . 45 15 . 30 . Influence Decreases 1910 | . 331 131 438 579 431 Entered New Map 195 | . . 6 41 28 120 Time Decay 1469 | . 226 105 377 541 220 Lost Part 131 | . 10 . 20 10 91 Lost Ally 20 | . . 20 . . . Purge Threat 95 | . 95 . . . . Squads Dispatched 12 | . 2 . 2 3 5 Investigation 8 | . . . 2 3 3 Extermination 1 | . . . . . 1 Reinforcement 3 | . 2 . . . 1 Assault . | . . . . . . Garrison . | . . . . . . Intercept . | . . . . . . Searches Triggered . | . . . . . . Construction Impeded 1 | . . . . . 1 Haulers Reinforced . | . . . . . . Active Scanning Responses . | . . . . . . Cargo Convoy Interrupts 1 | . . . . . 1 Stealth | -11 -10 -10 -9 -8 -7 --------- Run | Yrd Mat Min Mat Mat Fac Distress Signals 6 | . . . 6 . . Communications Jammed . | . . . . . . Distress Signals . | . . . . . . Times Spotted 106 | . 18 14 21 28 25 Peak Tracking Total 13 | . 5 4 6 5 13 Tactical Retreats 8 | . 3 3 . 2 . Traps | -11 -10 -10 -9 -8 -7 ------- Run | Yrd Mat Min Mat Mat Fac Traps Triggered 3 | . 3 . . . . Indirectly . | . . . . . . Trap Hack Attempts . | . . . . . . Triggered . | . . . . . . Disarmed . | . . . . . . Reprogrammed . | . . . . . . Reused . | . . . . . . Traps Extracted . | . . . . . . Installed . | . . . . . . Triggered . | . . . . . . Machines | -11 -10 -10 -9 -8 -7 ---------- Run | Yrd Mat Min Mat Mat Fac Machines Disabled 4 | . . . . 4 . Max in Single Turn 1 | . . . . 1 . Machines Repaired . | . . . . . . Machines Dismantled . | . . . . . . Machines Sabotaged . | . . . . . . Overloaded Fab Kills . | . . . . . . Hacking | -11 -10 -10 -9 -8 -7 --------- Run | Yrd Mat Min Mat Mat Fac Machines Accessed 17 | . 3 . 4 5 5 Terminals 12 | . 3 . 3 3 3 Fabricators . | . . . . . . Repair Stations 4 | . . . 1 1 2 Recycling Units . | . . . . . . Scanalyzers 1 | . . . . 1 . Garrison Access . | . . . . . . Total Hacks 59 | . 10 . 11 20 18 Successful 36 | . 7 . 5 12 12 Failed 22 | . 3 . 6 7 6 Catastrophic 5 | . 1 . 1 2 1 Database Lockouts 1 | . . . . 1 . Manual 29 | . 9 . 4 9 7 Terminals 36 | . 10 . 7 9 10 Fabricators . | . . . . . . Repair Stations 19 | . . . 4 7 8 Recycling Units . | . . . . . . Scanalyzers 4 | . . . . 4 . Garrison Access . | . . . . . . Terminal Hacks 17 | . 7 . 3 3 4 Record 1 | . 1 . . . . Part Schematic 1 | . 1 . . . . Robot Analysis 2 | . . . 1 1 . Branch Access Points 1 | . 1 . . . . Fabricator Index 1 | . 1 . . . . Repair Station Index 2 | . . . . 1 1 Alert Level 2 | . 1 . . 1 . Unreport Threat 1 | . 1 . . . . Security Status 1 | . . . . . 1 Hauler Manifests 2 | . 1 . 1 . . Zone Layout 3 | . . . 1 . 2 Fabricator Hacks . | . . . . . . Repair Station Hacks 15 | . . . 2 5 8 Scan Component 9 | . . . 1 3 5 Repair 6 | . . . 1 2 3 Recycling Unit Hacks . | . . . . . . Scanalyzer 4 | . . . . 4 . Retrieve Study 4 | . . . . 4 . Garrison Access Hacks . | . . . . . . Unauthorized Hacks . | . . . . . . Terminals . | . . . . . . Fabricators . | . . . . . . Repair Stations . | . . . . . . Recycling Units . | . . . . . . Scanalyzers . | . . . . . . Garrison Access . | . . . . . . Data Cores Recovered 1 | . . . . . 1 Used 1 | . . . . . 1 Hacking Detections 13 | . 1 . 3 4 5 Full Trace Events 9 | . . . 3 3 3 Feedback Events . | . . . . . . Feedback Blocked . | . . . . . . Robot Schematics Acquired . | . . . . . . Robots Built . | . . . . . . Authchips . | . . . . . . Time . | . . . . . . Total Robot Build Rating . | . . . . . . Part Schematics Acquired 1 | . 1 . . . . Parts Built . | . . . . . . Authchips . | . . . . . . Time . | . . . . . . Total Part Build Rating . | . . . . . . Part Studies Acquired 4 | . . . . 4 . Parts Repaired 6 | . . . 1 2 3 Time 216 | . . . 38 70 108 Parts Recycled . | . . . . . . Recycled Matter . | . . . . . . Retrieved Matter . | . . . . . . Retrieved Components . | . . . . . . Parts Scanalyzed . | . . . . . . Part Schematics Acquired . | . . . . . . Parts Damaged . | . . . . . . Bothacking | -11 -10 -10 -9 -8 -7 ------------ Run | Yrd Mat Min Mat Mat Fac Used RIF Installer . | . . . . . . Robots Hacked . | . . . . . . Non-combat . | . . . . . . Combat . | . . . . . . Robot Hacks Applied . | . . . . . . Relay Couplers Released . | . . . . . . Fabnet Peak Effective % . | . . . . . . Robots Rewired . | . . . . . . Allies Hacked . | . . . . . . Hacks Repelled . | . . . . . . Allies | -11 -10 -10 -9 -8 -7 -------- Run | Yrd Mat Min Mat Mat Fac Total Allies 2 | . . 2 . . . Largest Group 2 | . . 2 . . . Highest-Rated Group 47 | . . 47 . . . Highest-Rated Ally 31 | . . 31 . . . Total Orders . | . . . . . . Ally Attacks 24 | . . 24 . . . Total Damage 253 | . . 253 . . . Kills 4 | . . 4 . . . Allies Corrupted . | . . . . . . Allies Melted . | . . . . . . Intel | -11 -10 -10 -9 -8 -7 ------- Run | Yrd Mat Min Mat Mat Fac Active Infowar (turns) 2052 | . . . 704 493 855 Traps 1240 | . . . . 385 855 T.N.C. 1197 | . . . 704 493 . Robot Analysis Total 2 | . . . 1 1 . Derelict Logs Recovered 1 | . . 1 . . . Drone Launches . | . . . . . . Drone Recoveries . | . . . . . . Exploration | -11 -10 -10 -9 -8 -7 ------------- Run | Yrd Mat Min Mat Mat Fac Turns Passed 4919 | 48 814 456 926 1581 1094 Spaces Moved 2064 | 31 428 224 325 645 411 Core 17 | 13 . . 4 . . Treads 1763 | . 162 224 321 645 411 Legs 284 | 18 266 . . . . Wheels . | . . . . . . Hover . | . . . . . . Flight . | . . . . . . Fastest Speed 50 | 50 120 160 160 152 212 Average Speed 186 | 116 139 191 206 192 212 Slowest Speed 350 | 250 190 240 350 240 212 Overloaded Moves . | . . . . . . Propulsion Burnouts . | . . . . . . Robots Hopped . | . . . . . . Potential Cave-ins . | . . . . . . Cave-ins Triggered . | . . . . . . Exploration Rate (%) 39 | 4 71 66 31 53 14 Regions Visited 5 Branch Regions 1 Pre-discovered Areas 1 | . . 1 . . . Known Exits Taken 1 | . 1 . . . . Unknown Exits Taken 4 | 1 . 1 1 1 . Scrap Searched 1 | . . 1 . . . Spaces Dug . | . . . . . . Terrain Destroyed 134 | . . . . 108 26 Melee . | . . . . . . Projectile 5 | . . . . 3 2 AOE 129 | . . . . 105 24 Terrain Rammed . | . . . . . . Walls Destroyed . | . . . . . . Machines Disabled . | . . . . . . Actions | -11 -10 -10 -9 -8 -7 --------- Run | Yrd Mat Min Mat Mat Fac Total 2800 | 43 556 236 509 870 586 Wait 336 | . 37 2 81 92 124 Move 2059 | 30 427 223 324 644 411 Hop . | . . . . . . Pick Up 87 | 7 23 1 25 23 8 Fast Attach . | . . . . . . Attach 30 | 6 4 . 5 7 8 Detach 1 | . . . . 1 . Swap 37 | . 7 . 11 13 6 Drop 46 | . 10 1 15 17 3 Fire 199 | . 48 9 46 70 26 Melee . | . . . . . . Ram . | . . . . . . Kick . | . . . . . . Crush 5 | . . . 2 3 . Escape Stasis . | . . . . . . Rewire . | . . . . . . Trap . | . . . . . . Miscellaneous . | . . . . . . Route ------- -11/Scrapyard -10/Materials (discovered 3 exits: *Mat x2 / *Min) -10/Mines -9/Materials (discovered 2 exits: *Mat / [*Min]) -8/Materials (discovered 2 exits: *Fac x2) -7/Factory (discovered 1 exit: [*Fac]) History --------- Turn | Location | Event 9 | -11/Scrapyard | Discovered new exit (range 16) 49 | -11/Scrapyard | Entered Materials 207 | -10/Materials | Discovered new exit (range 10) 311 | -10/Materials | Build established: Mutant 424 | -10/Materials | Identified exit to Mines 671 | -10/Materials | Discovered new exit (range 16) 863 | -10/Materials | Entered Mines 877 | -10/Mines | Assembled infested the area 882 | -10/Mines | Assisted by a Guerilla fighting off Assembled 932 | -10/Mines | Discovered new exit (range 7) 933 | -10/Mines | Build established: Scavenger-Mutant 1241 | -10/Mines | Core integrity fell below 50% 1319 | -10/Mines | Entered Materials 1319 | -9/Materials | Evolved 2 slots: Utility x2 1402 | -9/Materials | Build established: Mutant 1947 | -9/Materials | Discovered new exit (range 14) 2144 | -9/Materials | Repaired Minigun 2200 | -9/Materials | Discovered new exit (range 16) 2245 | -9/Materials | Entered another Materials area 2245 | -8/Materials | Evolved 2 slots: Utility x1, Weapon x1 2983 | -8/Materials | Discovered new exit (range 11) 3067 | -8/Materials | Repaired Minigun+ 3103 | -8/Materials | Repaired Rocket Launcher 3375 | -8/Materials | Discovered new exit (range 9) 3380 | -8/Materials | Central database locked down 3765 | -8/Materials | Build established: Tank 3826 | -8/Materials | Entered Factory 3826 | -7/Factory | Evolved 2 slots: Utility x2 3985 | -7/Factory | Repaired Minigun+ 4428 | -7/Factory | Discovered new exit (range 16) 4796 | -7/Factory | Repaired Trap Scanner 4840 | -7/Factory | Repaired Rnf. Ion Engine 4872 | -7/Factory | Cargo convoy interrupted 4920 | -7/Factory | Self-destructed Last Messages --------------- 04902_ U-05 Engineer lays Concrete. 04903_ H-55 Commando destroyed. 04903_ Imp. Treads+ destroyed. 04904_ Penetrated by Slug. 04905_ Assault Cannon destroyed. 04905_ U-05 Engineer destroyed. 04905_ X-57 Shotgunner destroyed. 04905_ Grenade Launcher+ destroyed. 04909_ The unstable cave ceiling collapses. 04909_ Hrd. Medium Armor Plating destroyed. 04910_ Penetrated by Slug. 04911_ The unstable cave ceiling collapses. 04911_ Targeting Computer destroyed. 04912_ The unstable cave ceiling collapses. 04912_ Destroyed Com. Battery. 04913_ Penetrated by Slug. 04913_ Trap Scanner destroyed. 04915_ Penetrated by Slug. 04917_ R-06 Scavenger collects Aluminum Leg. 04920_ R-06 Scavenger collects Lgt. Deuterium Engine. Map ----- +----------------------------------------------------+ | ?????????????????????????????????????????????????? | | ?????????????????????????????????????????????????? | | ?????????????????????????????????????????????????? | | ?????????????????????????????????????????????????? | | ?????????????????????????????????????????????????? | | ?????????????????????????????????????????????????? | | ?????????????????????????????????????????????????? | | ?????????????????????????????????????????????????? | | ?????????????????????????????????????????????????? | | ?????????????????????????????????????????????????? | | ?????????????????????????????????????????????????? | | ?????????????????????????????????????????????????? | | ?????????????????????????????????????????????????? | | ?????????????????????????????????????????????????? | | ?????????????????#???????????????????????????????? | | ?????????????????? "????????????????????????????? | | ?????????????????? "????????????????????????????? | | ???????????????? ?? ""???????????????????????????? | | ???????????????? ??? ???????????????????????????? | | ???????????????? ???? ??????????????????????????? | | ???????????????#+???? ??????????????????????????? | | ???????????????# ?????]=####?????????????????????? | | ???????????????# ??????=# ####??????????????????? | | ???????????????# ##+####; # #####??????????????? | | ???????????????# ; " #??????????????? | | ???????????????# # @ = " #??????????????? | | ????? ###### r %[ [*" #??????????????? | | ????? p!%=m * [ ^#??????????????? | | ????? % h=% =% ! #??????????????? | | ????? / h A% #??????????????? | | ???????????? % #??????????????? | | ????????????# r ####??????????????? | | ????????????#### #????????????????? | | ???????????????# ##????????????????? | | ???????????????## !! !! #?????????????????? | | ????????????##### !! !/ #?????????????????? | | ????????????#T"## !! !/ #?????????????????? | | ?????######## "## #?????????????????? | | ?????# """" """" #?????????????????? | | ?????# """" """" #?????????????????? | | ###### """" ""??????????????????????? | | ??????????????????????? | | / ?????????????????????? | | ############ ????????????????????? | | """ #????????????????????????????????? | | ## """ #????????????????????????????????? | | ## """ ######????????????????????????????????? | | ?# #?????????????????????????????????????? | | #?????????????????????????????????????? | | ##### #?????????????????????????????????????? | +----------------------------------------------------+ Best States ------------- Heat Dissipation 34 Energy Generation 14 Energy Capacity 280 Matter Stores 300 Matter Capacity 300 Sight Range 16 Terrain Scan Density 10 Armor Coverage 600 Core Shielding 20 Propulsion Shielding 33 Utility Shielding 66 Evasion (%) 55 Targeting Accuracy 5 Recoil Reduction 2 Offensive Hacking 10 Item Schematics ----------------- Huge Storage Unit | -10/Materials | Hacked Robot Schematics ------------------ None Fabricated ------------ Nothing Repaired ---------- Minigun | 13% | -9/Materials Minigun | 4% | -8/Materials Rocket Launcher | 14% | -8/Materials Minigun | 16% | -7/Factory Trap Scanner | 15% | -7/Factory Rnf. Ion Engine | 20% | -7/Factory Studied --------- Minigun | -8/Materials | Hacked Imp. Treads | -8/Materials | Hacked Grenade Launcher | -8/Materials | Hacked Lgt. Treads | -8/Materials | Hacked Alien Tech Used ----------------- None Achievements -------------- Dynamic Key Everything Is Under Control Challenges ------------ None Game ------ Seed ShiftMultinovaThermoblaster Manual? 0 Play Time 01:09:48 Cumulative 9.6 hours Start 2026.09.11 @ 15:06:47 End 2026.09.11 @ 16:16:12 Sessions 1 Manual Loads 0 Difficulty Rogue Special Mode None Game No. 14 Rogue 14 Adventurer 0 Explorer 0 Win Type - Total 0 Types 0/0/0/0/0/0/0/0/0/0 Lore% 5 Gallery% 10 Achievement% 10 Wizard Run 0 Options --------- Layout 0 ASCII 0 Keyboard 0 Movement Arrows Keybinds 0 Fullscreen 1 Font 24/Smallcaps Map View 113x50 Zoom Use 0% Tactical HUD 1 Map Filters NONE Filters NONE Steam 1 RUN: c2bbcba0-bba5-448e-9248-ed04e1c8960e